bitfinex/quotes_BTCUSD_20240728
["timestamp","ask_amount","ask_price","bid_price","bid_amount"]
[1722210423922,0.00084,68347.0,68346.0,2.05626532]
[1722210427069,0.0153258,68357.0,68356.0,0.044]
[1722210427219,0.0153258,68357.0,68356.0,0.76353451]
[1722210427420,0.0153258,68357.0,68356.0,1.34509989]
[1722210427641,0.0153258,68357.0,68356.0,1.81323589]
[1722210428388,0.0153258,68357.0,68356.0,1.84123589]
[1722210428731,0.0153258,68357.0,68356.0,1.82723589]
[1722210428933,0.0153258,68357.0,68356.0,1.81031038]
[1722210429270,0.0153258,68357.0,68356.0,1.60424238]
[1722210431448,0.0153258,68357.0,68356.0,1.50487238]
[1722210432709,0.0153258,68357.0,68356.0,1.60424238]
[1722210433500,0.0153258,68357.0,68356.0,1.50487238]
[1722210436662,0.0153258,68357.0,68356.0,1.51365213]
[1722210441087,0.0153258,68357.0,68356.0,1.51165213]
[1722210443481,0.0159558,68357.0,68356.0,1.00698413]
[1722210443615,0.0159558,68357.0,68356.0,1.09118413]
[1722210444445,0.0159558,68357.0,68356.0,1.06318413]
[1722210444983,0.0159558,68357.0,68356.0,1.07718413]
[1722210445740,0.0159558,68357.0,68356.0,1.06264713]
[1722210445982,0.0153258,68357.0,68356.0,1.06264713]
[1722210446197,0.0153258,68357.0,68356.0,1.20254713]
[1722210446409,0.0153258,68357.0,68356.0,1.21654713]
[1722210446732,0.0153258,68357.0,68356.0,1.15544713]
[1722210446931,0.0153258,68357.0,68356.0,1.28143184]
[1722210447181,0.0153258,68357.0,68356.0,1.20263184]
[1722210447799,0.0159558,68357.0,68356.0,1.20263184]
[1722210448199,0.0159558,68357.0,68356.0,0.99244713]
[1722210448374,0.0239558,68357.0,68356.0,1.07664713]
[1722210452324,0.0239558,68357.0,68356.0,0.60851113]
[1722210452536,0.0239558,68357.0,68356.0,0.26724313]
[1722210452537,0.20489483,68357.0,68356.0,0.26724313]
[1722210452727,0.20489483,68357.0,68356.0,0.05020913]
[1722210452728,0.20573483,68357.0,68356.0,0.05020913]
[1722210452929,0.20573483,68357.0,68356.0,0.04142938]
[1722210453132,0.24948127,68357.0,68356.0,0.04142938]
[1722210453385,0.24948127,68357.0,68356.0,0.02742938]
[1722210453690,0.27183975,68357.0,68356.0,0.028]
[1722210454123,0.38887175,68357.0,68356.0,0.03940898]
[1722210454329,0.38887175,68357.0,68356.0,0.02540898]
[1722210454477,0.20622009,68357.0,68356.0,0.02540898]
[1722210454683,0.20622009,68357.0,68356.0,0.01340898]
[1722210455092,0.20622009,68357.0,68356.0,0.014]
[1722210455303,0.20622009,68357.0,68356.0,0.01173286]
[1722210455636,0.29378577,68357.0,68356.0,0.02473286]
[1722210455789,0.29378577,68357.0,68356.0,0.04026612]
[1722210455952,0.29378577,68357.0,68356.0,0.02726612]
[1722210456353,0.29378577,68357.0,68356.0,0.04026612]
[1722210456569,0.20622009,68357.0,68356.0,0.03826612]
[1722210457652,0.20652463,68357.0,68356.0,0.03826612]
[1722210457987,0.31612313,68357.0,68356.0,0.03826612]
[1722210458526,0.20652463,68357.0,68356.0,0.03826612]
[1722210458978,0.20652463,68357.0,68356.0,0.04231047]
[1722210459584,0.31612118,68357.0,68356.0,0.04231047]
[1722210460583,0.31549118,68357.0,68356.0,0.04231047]
[1722210460741,0.31612118,68357.0,68356.0,0.04231047]
[1722210460941,0.31606782,68357.0,68356.0,0.04231047]
[1722210461562,0.31606313,68357.0,68356.0,0.04231047]
[1722210462157,0.55757288,68357.0,68356.0,0.027]
[1722210463485,0.55775499,68357.0,68356.0,0.027]
[1722210463662,0.79181999,68357.0,68356.0,0.027]
[1722210464092,1.07588499,68357.0,68356.0,0.027]
[1722210464289,1.15026965,68357.0,68356.0,0.027]
[1722210464486,1.298832,68357.0,68356.0,0.027]
[1722210464916,1.29819934,68357.0,68356.0,0.014]
[1722210465162,0.789025,68353.0,68352.0,0.000924]
[1722210465346,0.90437185,68353.0,68352.0,0.000924]
[1722210465652,0.98578336,68353.0,68352.0,0.000924]
[1722210465856,0.77998719,68353.0,68352.0,0.000924]
[1722210466056,0.31183119,68353.0,68352.0,0.000924]
[1722210466234,0.54590919,68353.0,68352.0,0.000924]
[1722210466436,0.3042779,68353.0,68352.0,0.011924]
[1722210466615,0.19479219,68353.0,68352.0,0.024924]
[1722210466981,0.30427697,68353.0,68352.0,0.04019535]
[1722210467162,0.19479219,68353.0,68352.0,0.04019535]
[1722210467362,0.31183119,68353.0,68352.0,0.04019535]
[1722210467582,0.270869,68353.0,68352.0,0.04019535]
[1722210467790,0.19478629,68353.0,68352.0,0.04019535]
[1722210468146,0.30425714,68353.0,68352.0,0.04019535]
[1722210469498,0.19478629,68353.0,68352.0,0.04019535]
[1722210469999,0.30425714,68353.0,68352.0,0.04019535]
[1722210470218,0.31182529,68353.0,68352.0,0.04019535]
[1722210470444,0.54590329,68353.0,68352.0,0.04019535]
[1722210470613,0.54590329,68353.0,68352.0,0.024924]
[1722210470818,0.504947,68353.0,68352.0,0.024924]
[1722210470993,0.62047526,68353.0,68352.0,0.024924]
[1722210471199,0.504947,68353.0,68352.0,0.024924]
[1722210471403,0.57942164,68353.0,68352.0,0.024924]
[1722210471598,0.62047622,68353.0,68352.0,0.024924]
[1722210471973,0.54600158,68353.0,68352.0,0.024924]
[1722210472186,0.65541765,68353.0,68352.0,0.024924]
[1722210472423,0.54600158,68353.0,68352.0,0.024924]
[1722210472936,0.65541765,68353.0,68352.0,0.024924]
[1722210473142,0.78010666,68353.0,68352.0,0.024924]
[1722210473349,0.54602866,68353.0,68352.0,0.024924]
[1722210473551,0.78010666,68353.0,68352.0,0.024924]
[1722210473753,0.86762479,68353.0,68352.0,0.024924]
[1722210473952,0.78010666,68353.0,68352.0,0.024924]
[1722210474173,0.739025,68353.0,68352.0,0.024924]
[1722210474387,0.65534825,68353.0,68352.0,0.024924]
[1722210474499,0.54594932,68353.0,68352.0,0.024924]
[1722210474905,0.65534825,68353.0,68352.0,0.024924]
[1722210475101,0.23792019,68353.0,68352.0,1.288393]
[1722210475347,0.0161658,68357.0,68356.0,0.351102]
[1722210475547,0.0241658,68357.0,68356.0,0.919238]
[1722210475861,0.0241658,68357.0,68356.0,1.1083552]
[1722210476680,0.0241658,68357.0,68356.0,1.1223552]
[1722210476889,0.0241658,68357.0,68356.0,0.97209563]
[1722210477023,0.0241658,68357.0,68356.0,0.73802763]
[1722210477451,0.0241658,68357.0,68356.0,0.97209563]
[1722210478458,0.0241658,68357.0,68356.0,0.96519042]
[1722210478658,0.0241658,68357.0,68356.0,0.72212242]
[1722210480128,0.0247958,68357.0,68356.0,0.72212242]
[1722210480706,0.0247958,68357.0,68356.0,0.95619042]
[1722210480943,0.0161658,68357.0,68356.0,1.05277207]
[1722210481113,0.0161658,68357.0,68356.0,1.07577207]
[1722210481534,0.0241658,68357.0,68356.0,1.07577207]
[1722210482392,0.0241658,68357.0,68356.0,0.97919042]
[1722210483226,0.0161658,68357.0,68356.0,0.97919042]
[1722210483444,0.0161658,68357.0,68356.0,1.34855842]
[1722210483644,0.0161658,68357.0,68356.0,1.11449042]
[1722210483963,0.0161658,68357.0,68356.0,1.34855842]
[1722210484100,0.0161658,68357.0,68356.0,1.49881799]
[1722210485596,0.0161658,68357.0,68356.0,1.49974199]
[1722210488157,0.0161658,68357.0,68356.0,1.34948242]
[1722210490855,0.0161658,68357.0,68356.0,1.11541442]
[1722210491523,0.0161658,68357.0,68356.0,1.34948242]
[1722210496458,0.0161658,68357.0,68356.0,1.11541442]
[1722210497110,0.0161658,68357.0,68356.0,1.34948242]
[1722210497244,0.0161658,68357.0,68356.0,1.11541442]
[1722210497451,0.0161658,68357.0,68356.0,1.34948242]
[1722210498396,0.0161658,68357.0,68356.0,0.98011442]
[1722210499149,0.0161658,68357.0,68356.0,1.29818242]
[1722210499330,0.0167958,68357.0,68356.0,1.06411442]
[1722210499736,0.0161658,68357.0,68356.0,1.29818242]
[1722210501849,0.0167958,68357.0,68356.0,1.29818242]
[1722210502050,0.0161658,68357.0,68356.0,1.29818242]
[1722210504148,0.0167958,68357.0,68356.0,1.29818242]
[1722210504750,0.05043128,68357.0,68356.0,1.29818242]
[1722210505244,0.05043128,68357.0,68356.0,1.44814027]
[1722210505761,0.05039597,68357.0,68356.0,1.44814027]
[1722210506214,0.05039597,68357.0,68356.0,1.58964027]
[1722210509068,0.05039597,68357.0,68356.0,1.43968242]
[1722210509069,0.0161658,68357.0,68356.0,1.43968242]
[1722210509273,0.05044864,68357.0,68356.0,1.43968242]
[1722210510225,0.05044864,68357.0,68356.0,1.43768242]
[1722210511075,0.05044864,68357.0,68356.0,1.43568242]
[1722210512028,0.05044864,68357.0,68356.0,1.43368242]
[1722210512245,0.0161658,68357.0,68356.0,1.43368242]
[1722210512451,0.05047096,68357.0,68356.0,1.43368242]
[1722210512656,0.05047096,68357.0,68356.0,1.20837399]
[1722210512886,0.05047287,68357.0,68356.0,1.20837399]
[1722210513383,0.05110287,68357.0,68356.0,1.44044199]
[1722210513996,0.05110287,68357.0,68356.0,1.20637399]
[1722210514580,0.05110287,68357.0,68356.0,1.44044199]
[1722210514779,0.05047287,68357.0,68356.0,1.44044199]
[1722210515597,0.05039279,68357.0,68356.0,1.44044199]
[1722210519128,0.050503,68357.0,68356.0,1.44044199]
[1722210519532,0.09440107,68357.0,68356.0,1.44044199]
[1722210520764,0.050503,68357.0,68356.0,1.44044199]
[1722210521492,0.13829915,68357.0,68356.0,1.44044199]
[1722210522339,0.10408031,68357.0,68356.0,1.44044199]
[1722210522497,0.13843167,68357.0,68356.0,1.44044199]
[1722210522698,0.05051716,68357.0,68356.0,1.44044199]
[1722210522968,0.06012273,68357.0,68356.0,1.44044199]
[1722210523150,0.0161658,68357.0,68356.0,1.44044199]
[1722210523351,0.08210119,68357.0,68356.0,1.44044199]
[1722210523502,0.0161658,68357.0,68356.0,1.44044199]
[1722210523913,0.0161658,68357.0,68356.0,1.57644199]
[1722210526432,0.06011683,68357.0,68356.0,1.57644199]
[1722210526628,0.08209523,68357.0,68356.0,1.57644199]
[1722210527067,0.0161658,68357.0,68356.0,1.57644199]
[1722210527496,0.0601131,68357.0,68356.0,1.57644199]
[1722210528108,0.0161658,68357.0,68356.0,1.57644199]
[1722210529725,0.0161658,68357.0,68356.0,1.81050999]
[1722210529925,0.0161658,68357.0,68356.0,1.57644199]
[1722210530287,0.0161658,68357.0,68356.0,1.56244199]
[1722210530705,0.0161658,68357.0,68356.0,1.57644199]
[1722210530975,0.0161658,68357.0,68356.0,1.56244199]
[1722210531320,0.0161658,68357.0,68356.0,1.57644199]
[1722210531916,0.0161658,68357.0,68356.0,1.90987999]
[1722210532599,0.0161658,68357.0,68356.0,1.95187999]
[1722210537056,0.0161658,68357.0,68356.0,1.85250999]
[1722210537395,0.0161658,68357.0,68356.0,1.85050999]
[1722210537802,0.0161658,68357.0,68356.0,1.94987999]
[1722210541498,0.0161658,68357.0,68356.0,1.95187999]
[1722210541727,0.0161658,68357.0,68356.0,1.94987999]
[1722210542545,0.00162972,68357.0,68356.0,2.18812956]
[1722210542720,0.00162972,68357.0,68356.0,2.42019756]
[1722210542922,0.00162972,68357.0,68356.0,2.18612956]
[1722210543689,0.07411146,68368.0,68365.0,0.936148]
[1722210543690,0.06586146,68367.0,68365.0,0.936148]
[1722210543888,0.06586146,68367.0,68366.0,0.25004714]
[1722210544149,0.00825,68368.0,68367.0,0.117015]
[1722210544150,0.00928973,68368.0,68367.0,0.117015]
[1722210544308,0.03842128,68368.0,68367.0,0.942108]
[1722210544510,0.03842128,68368.0,68367.0,1.25348136]
[1722210546135,0.10427347,68368.0,68367.0,1.26748136]
[1722210546723,0.10427347,68368.0,68367.0,1.28148136]
[1722210547334,0.07410219,68368.0,68367.0,1.28148136]
[1722210547535,0.10432394,68368.0,68367.0,1.28148136]
[1722210550779,0.0384745,68368.0,68367.0,1.28148136]
[1722210551006,0.00825,68368.0,68367.0,1.65688236]
[1722210551274,0.00825,68368.0,68367.0,1.63261236]
[1722210552016,0.00825,68368.0,68367.0,1.60461236]
[1722210552262,0.00825,68368.0,68367.0,1.70261236]
[1722210552504,0.14645,68368.0,68367.0,1.36548136]
[1722210553247,0.14645,68368.0,68367.0,1.37431446]
[1722210554190,0.00825,68368.0,68367.0,1.37431446]
[1722210559204,0.00825,68368.0,68367.0,1.43521446]
[1722210559653,0.00825,68368.0,68367.0,1.37431446]
[1722210560345,0.00825,68368.0,68367.0,1.42368446]
[1722210561721,0.00825,68368.0,68367.0,1.37431446]
[1722210561908,0.00825,68368.0,68367.0,1.29031446]
[1722210562127,0.00825,68368.0,68367.0,1.37431446]
[1722210578057,0.00888,68368.0,68367.0,1.37431446]
[1722210578258,0.14888,68368.0,68367.0,1.37431446]
[1722210578860,0.14888,68368.0,68367.0,1.29031446]
[1722210579070,0.14888,68368.0,68367.0,1.07296933]
[1722210579071,0.14984081,68368.0,68367.0,1.07296933]
[1722210579273,0.14888,68368.0,68367.0,1.07296933]
[1722210580918,0.15012521,68368.0,68367.0,1.07296933]
[1722210581238,0.14888,68368.0,68367.0,1.07296933]
[1722210582005,0.1497038,68368.0,68367.0,1.07296933]
[1722210582231,0.14888,68368.0,68367.0,1.18026626]
[1722210583308,0.14888,68368.0,68367.0,1.07296933]
[1722210583710,0.1499002,68368.0,68367.0,1.07296933]
[1722210583915,0.19278219,68368.0,68367.0,1.07296933]
[1722210584917,0.19371949,68368.0,68367.0,1.07296933]
[1722210585161,0.19278219,68368.0,68367.0,1.07296933]
[1722210585376,0.19278219,68368.0,68367.0,1.18026626]
[1722210585824,0.18114691,68368.0,68367.0,0.52090733]
[1722210586028,0.29090239,68368.0,68367.0,0.60490733]
[1722210586226,0.18114691,68368.0,68367.0,0.83893833]
[1722210586579,0.18114691,68368.0,68367.0,0.81093833]
[1722210586781,0.18114691,68368.0,68367.0,0.82493833]
[1722210586989,0.15688,68368.0,68367.0,0.83893833]
[1722210587198,0.18098913,68368.0,68367.0,0.83893833]
[1722210587394,0.18098913,68368.0,68367.0,0.94623646]
[1722210587395,0.29074911,68368.0,68367.0,0.94623646]
[1722210587599,0.18098913,68368.0,68367.0,0.94623646]
[1722210587823,0.26879346,68368.0,68367.0,0.94623646]
[1722210588047,0.26879407,68368.0,68367.0,0.94623646]
[1722210588228,0.15688,68368.0,68367.0,1.16626746]
[1722210588428,0.22273313,68368.0,68367.0,1.18026746]
[1722210588767,0.22273313,68368.0,68367.0,0.94623646]
[1722210588768,0.1808615,68368.0,68367.0,0.94623646]
[1722210588951,0.1808615,68368.0,68367.0,0.91823646]
[1722210589354,0.1808615,68368.0,68367.0,0.94623646]
[1722210589355,0.26866644,68368.0,68367.0,0.94623646]
[1722210589554,0.26866644,68368.0,68367.0,0.93223646]
[1722210589759,0.26866644,68368.0,68367.0,0.94623646]
[1722210590361,0.26866734,68368.0,68367.0,0.83893833]
[1722210590726,0.15688,68368.0,68367.0,0.83893833]
[1722210590925,0.26875711,68368.0,68367.0,0.83893833]
[1722210592021,0.26875711,68368.0,68367.0,1.07296933]
[1722210592633,0.26875711,68368.0,68367.0,0.83893833]
[1722210592812,0.29070496,68368.0,68367.0,0.87345906]
[1722210593012,0.29070496,68368.0,68367.0,0.72310523]
[1722210593208,0.18095245,68368.0,68367.0,0.80710523]
[1722210593615,0.18099515,68368.0,68367.0,0.80710523]
[1722210594853,0.1810231,68368.0,68367.0,0.80710523]
[1722210595611,0.29076061,68368.0,68367.0,0.80710523]
[1722210595911,0.1810231,68368.0,68367.0,0.88868656]
[1722210596270,0.2688078,68368.0,68367.0,0.88868656]
[1722210596485,0.1810231,68368.0,68367.0,0.88868656]
[1722210597188,0.18097391,68368.0,68367.0,0.88868656]
[1722210597399,0.26875642,68368.0,68367.0,0.88868656]
[1722210598173,0.18097391,68368.0,68367.0,0.88868656]
[1722210598685,0.29070531,68368.0,68367.0,0.88868656]
[1722210598868,0.18097391,68368.0,68367.0,0.88868656]
[1722210599073,0.29070531,68368.0,68367.0,0.88868656]
[1722210600397,0.29075149,68368.0,68367.0,0.80710523]
[1722210600800,0.26660531,68368.0,68367.0,0.80710523]
[1722210601001,0.29075,68368.0,68367.0,0.80710523]
[1722210601202,0.29075,68368.0,68367.0,0.03802823]
[1722210601203,0.29803769,68368.0,68367.0,0.03802823]
[1722210601771,0.23956574,68368.0,68367.0,0.028]
[1722210601907,0.18102469,68368.0,68367.0,0.028]
[1722210602113,0.18102469,68368.0,68367.0,0.1408922]
[1722210602314,0.18102469,68368.0,68367.0,0.1368922]
[1722210602510,0.18121608,68368.0,68367.0,0.1368922]
[1722210602745,0.18121608,68368.0,68367.0,0.1268922]
[1722210602949,0.18121608,68368.0,68367.0,0.3609232]
[1722210603192,0.18121608,68368.0,68367.0,0.3829232]
[1722210603392,0.18121608,68368.0,68367.0,0.3709232]
[1722210603792,0.18121608,68368.0,68367.0,0.6169542]
[1722210604045,0.18121608,68368.0,68367.0,1.00388092]
[1722210605828,0.18119589,68368.0,68367.0,1.00388092]
[1722210606028,0.18056589,68368.0,68367.0,1.00388092]
[1722210606229,0.18119589,68368.0,68367.0,1.00388092]
[1722210609167,0.20568456,68368.0,68367.0,1.00388092]
[1722210609361,0.18128228,68368.0,68367.0,1.00388092]
[1722210610354,0.18065228,68368.0,68367.0,1.00388092]
[1722210610704,0.18128228,68368.0,68367.0,1.00388092]
[1722210612432,0.15688,68368.0,68367.0,1.00388092]
[1722210612603,0.18128427,68368.0,68367.0,1.00388092]
[1722210612810,0.18128409,68368.0,68367.0,1.00388092]
[1722210614442,0.18124471,68368.0,68367.0,1.00388092]
[1722210615022,0.18124368,68368.0,68367.0,1.00388092]
[1722210615720,0.18125296,68368.0,68367.0,1.00388092]
[1722210617633,0.04125296,68368.0,68367.0,1.00388092]
[1722210618086,0.04125296,68368.0,68367.0,1.08498092]
[1722210618303,0.04125296,68368.0,68367.0,1.10798092]
[1722210618506,0.04125296,68368.0,68367.0,1.02688092]
[1722210618922,0.01688,68368.0,68367.0,1.02688092]
[1722210619157,0.04113289,68368.0,68367.0,1.02688092]
[1722210620754,0.18633289,68368.0,68367.0,0.9579852]
[1722210620970,0.18633289,68368.0,68367.0,0.8509852]
[1722210621575,0.12103289,68368.0,68367.0,0.8509852]
[1722210622213,0.12110027,68368.0,68367.0,0.8509852]
[1722210622880,0.12110231,68368.0,68367.0,0.8509852]
[1722210623100,0.12110231,68368.0,68367.0,0.86896946]
[1722210624751,0.04120231,68368.0,68367.0,0.86896946]
[1722210625463,0.04125417,68368.0,68367.0,0.86896946]
[1722210627041,0.04125417,68368.0,68367.0,0.89196946]
[1722210628655,0.01688,68368.0,68367.0,0.89196946]
[1722210629443,0.04126814,68368.0,68367.0,0.89196946]
[1722210631976,0.01688,68368.0,68367.0,0.89196946]
[1722210632434,0.04121869,68368.0,68367.0,0.89196946]
[1722210632604,0.04121362,68368.0,68367.0,0.89196946]
[1722210633289,0.15101236,68368.0,68367.0,0.99196946]
[1722210633485,0.15101236,68368.0,68367.0,0.97996946]
[1722210633864,0.15101236,68368.0,68367.0,0.99396946]
[1722210633865,0.04121362,68368.0,68367.0,0.99396946]
[1722210634000,0.04121362,68368.0,68367.0,0.98396946]
[1722210634438,0.04121362,68368.0,68367.0,0.99796946]
[1722210634646,0.04108531,68368.0,68367.0,0.99796946]
[1722210635222,0.04108616,68368.0,68367.0,0.99796946]
[1722210637773,0.11878616,68368.0,68367.0,0.99796946]
[1722210638489,0.09458,68368.0,68367.0,0.99796946]
[1722210638685,0.11889067,68368.0,68367.0,0.99796946]
[1722210639481,0.04119067,68368.0,68367.0,0.99796946]
[1722210641749,0.01688,68368.0,68367.0,0.99796946]
[1722210642325,0.04184306,68368.0,68367.0,0.99796946]
[1722210644344,0.04192332,68368.0,68367.0,0.99796946]
[1722210644817,0.04192332,68368.0,68367.0,0.9799852]
[1722210645024,0.04192739,68368.0,68367.0,0.9799852]
[1722210648168,0.04347364,68368.0,68367.0,0.9799852]
[1722210648385,0.01688,68368.0,68367.0,0.9799852]
[1722210648590,0.04211105,68368.0,68367.0,0.9799852]
[1722210648974,0.04211105,68368.0,68367.0,1.10207986]
[1722210651613,0.04203962,68368.0,68367.0,1.10207986]
[1722210652060,0.01688,68368.0,68367.0,1.10207986]
[1722210652703,0.04203841,68368.0,68367.0,1.10207986]
[1722210654254,0.04170225,68368.0,68367.0,1.10207986]
[1722210654699,0.04170225,68368.0,68367.0,1.18607986]
[1722210654898,0.04167398,68368.0,68367.0,1.18607986]
[1722210655098,0.01688,68368.0,68367.0,1.18607986]
[1722210655300,0.04167346,68368.0,68367.0,1.18607986]
[1722210655504,0.01688,68368.0,68367.0,1.18607986]
[1722210655687,0.04167346,68368.0,68367.0,1.18607986]
[1722210658230,0.04163873,68368.0,68367.0,1.18607986]
[1722210660108,0.04163873,68368.0,68367.0,1.0639852]
[1722210660951,0.16198,68368.0,68367.0,0.7229542]
[1722210661151,0.31840149,68368.0,68367.0,0.7229542]
[1722210661357,0.18656172,68368.0,68367.0,0.7229542]
[1722210661570,0.18638686,68368.0,68367.0,0.7229542]
[1722210663607,0.18647523,68368.0,68367.0,0.7229542]
[1722210665482,0.18647523,68368.0,68367.0,0.8069542]
[1722210665718,0.31832273,68368.0,68367.0,0.8069542]
[1722210666082,0.31832273,68368.0,68367.0,1.0409852]
[1722210666294,0.17322273,68368.0,68367.0,1.15313462]
[1722210666458,0.09613107,68368.0,68367.0,1.29683462]
[1722210666663,0.09613107,68368.0,68367.0,1.55386562]
[1722210666664,0.12062573,68368.0,68367.0,1.55386562]
[1722210666863,0.11810973,68368.0,68367.0,1.55386562]
[1722210667120,0.09613785,68368.0,68367.0,1.55386562]
[1722210667584,0.00825,68368.0,68367.0,1.53986562]
[1722210668056,0.00888,68368.0,68367.0,1.55386562]
[1722210668258,0.00888,68368.0,68367.0,1.53986562]
[1722210668440,0.07477789,68368.0,68367.0,1.53986562]
[1722210668604,0.07477789,68368.0,68367.0,1.55386562]
[1722210669605,0.0521771,68368.0,68367.0,1.55386562]
[1722210670061,0.00825,68368.0,68367.0,1.55386562]
[1722210680791,0.00825,68368.0,68367.0,1.92926662]
[1722210681566,0.00825,68368.0,68367.0,2.16751619]
[1722210685465,0.00825,68374.0,68373.0,0.14137]
[1722210685685,0.00825,68374.0,68373.0,0.74160963]
[1722210685867,0.00825,68374.0,68373.0,1.54363963]
[1722210686066,0.00825,68374.0,68373.0,1.78829598]
[1722210686295,0.00825,68374.0,68373.0,2.02654555]
[1722210686511,0.00825,68374.0,68373.0,2.17680512]
[1722210687071,0.00825,68374.0,68373.0,2.19080512]
[1722210687472,0.00825,68377.0,68376.0,1.42837]
[1722210687843,0.00825,68377.0,68376.0,1.92642957]
[1722210688039,0.00825,68377.0,68376.0,1.93706844]
[1722210688243,0.00825,68377.0,68376.0,2.09237257]
[1722210688674,0.00825,68377.0,68376.0,2.10637257]
[1722210689509,0.00825,68377.0,68376.0,2.12037257]
[1722210689913,0.00825,68377.0,68376.0,2.10637257]
[1722210690141,0.00825,68377.0,68376.0,2.12037257]
[1722210691116,0.0030452,68378.0,68377.0,1.660138]
[1722210691318,0.0030452,68378.0,68377.0,2.08365714]
[1722210691528,0.0030452,68378.0,68377.0,2.09429394]
[1722210692555,0.0030452,68378.0,68377.0,2.10829394]
[1722210693490,0.0030452,68378.0,68377.0,2.12229394]
[1722210693919,0.0030452,68378.0,68377.0,1.36487837]
[1722210694108,0.0030452,68378.0,68377.0,1.44887837]
[1722210694811,0.0030452,68378.0,68377.0,1.54824837]
[1722210695045,0.0030452,68378.0,68377.0,0.9576228]
[1722210695046,0.1465752,68378.0,68377.0,0.9576228]
[1722210695258,0.1545752,68378.0,68377.0,0.1556348]
[1722210695406,0.21716975,68378.0,68377.0,0.1556348]
[1722210695606,0.23906691,68378.0,68377.0,0.6236268]
[1722210696019,0.1545752,68378.0,68377.0,0.6236268]
[1722210696222,0.23927144,68378.0,68377.0,0.6096268]
[1722210696422,0.17356878,68378.0,68377.0,0.6096268]
[1722210696620,0.17356878,68378.0,68377.0,0.6236268]
[1722210696948,0.17356878,68378.0,68377.0,0.7236268]
[1722210697152,0.17356878,68378.0,68377.0,0.7096268]
[1722210697490,0.17356878,68378.0,68377.0,0.7236268]
[1722210698127,0.23927547,68378.0,68377.0,0.7236268]
[1722210698328,0.17356878,68378.0,68377.0,0.7236268]
[1722210698552,0.23927547,68378.0,68377.0,0.7236268]
[1722210698754,0.17356878,68378.0,68377.0,0.7236268]
[1722210699174,0.17293878,68378.0,68377.0,0.9806228]
[1722210699408,0.1545752,68378.0,68377.0,1.08708508]
[1722210699654,0.1539452,68378.0,68377.0,1.08708508]
[1722210700280,0.1545752,68378.0,68377.0,1.08708508]
[1722210700495,0.1545752,68378.0,68377.0,0.85308908]
[1722210701033,0.17361122,68378.0,68377.0,0.7466268]
[1722210701336,0.17361122,68378.0,68377.0,0.1386368]
[1722210701574,0.52460022,68378.0,68377.0,0.0386368]
[1722210701744,0.29060722,68378.0,68377.0,0.0386368]
[1722210701947,0.4720147,68378.0,68377.0,0.028]
[1722210702427,0.47205926,68378.0,68377.0,0.028]
[1722210702633,0.7063498,68378.0,68377.0,0.028]
[1722210703042,0.34099538,68378.0,68377.0,0.014]
[1722210703200,0.00063,68374.0,68373.0,0.1]
[1722210703398,0.00063,68374.0,68373.0,0.217005]
[1722210703399,0.17345418,68374.0,68373.0,0.217005]
[1722210703608,0.17345418,68374.0,68373.0,0.1]
[1722210703903,0.14603,68372.0,68371.0,0.1]
[1722210704038,0.2749962,68372.0,68371.0,0.1]
[1722210704479,0.2749962,68372.0,68371.0,0.217008]
[1722210704649,0.2829962,68372.0,68371.0,0.1]
[1722210704858,0.14503,68371.0,68370.0,0.11701]
[1722210705050,0.14503,68371.0,68370.0,0.21701]
[1722210705275,0.16447183,68371.0,68370.0,0.1]
[1722210705484,0.27401385,68371.0,68370.0,0.21701]
[1722210705834,0.16457531,68371.0,68370.0,0.21701]
[1722210706398,0.27410877,68371.0,68370.0,0.21701]
[1722210706560,0.27410877,68371.0,68370.0,0.1]
[1722210706760,0.27410877,68371.0,68370.0,0.21701]
[1722210706964,0.27410877,68371.0,68370.0,0.23101]
[1722210707219,0.27410877,68371.0,68370.0,0.127]
[1722210707434,0.27410877,68371.0,68370.0,0.24401]
[1722210707566,0.27410877,68371.0,68370.0,0.244934]
[1722210707976,0.27410877,68371.0,68370.0,0.127924]
[1722210708172,0.28210877,68371.0,68370.0,0.478954]
[1722210708379,0.28210819,68371.0,68370.0,0.478954]
[1722210709093,0.28212107,68371.0,68370.0,0.244934]
[1722210709291,0.28212107,68371.0,68370.0,0.127924]
[1722210709633,0.28212087,68371.0,68370.0,0.127924]
[1722210710361,0.28212087,68371.0,68370.0,0.25507149]
[1722210711087,0.28212087,68371.0,68370.0,0.13806149]
[1722210711242,0.39912887,68371.0,68370.0,0.03806149]
[1722210711443,0.2895962,68371.0,68370.0,0.03806149]
[1722210711741,0.5236132,68371.0,68370.0,0.03806149]
[1722210711960,0.5236132,68371.0,68370.0,0.027924]
[1722210712126,0.65505265,68371.0,68370.0,0.027924]
[1722210712326,0.42063014,68371.0,68370.0,0.027924]
[1722210712937,0.42061099,68371.0,68370.0,0.027924]
[1722210713151,0.42061099,68371.0,68370.0,0.03806149]
[1722210713372,0.52319753,68371.0,68370.0,0.03806149]
[1722210713549,0.75721453,68371.0,68370.0,0.027924]
[1722210713889,1.04123153,68371.0,68370.0,0.027924]
[1722210714333,1.0949925,68371.0,68370.0,0.027924]
[1722210714518,1.04123153,68371.0,68370.0,0.027924]
[1722210714719,1.04123153,68371.0,68370.0,0.013924]
[1722210714920,1.04140192,68371.0,68370.0,0.021924]
[1722210715079,1.04140192,68371.0,68370.0,0.008924]
[1722210715326,1.022089,68371.0,68370.0,0.008924]
[1722210715485,1.04141197,68371.0,68370.0,0.014924]
[1722210715685,1.04141265,68371.0,68370.0,0.014924]
[1722210716262,1.04132678,68371.0,68370.0,0.014924]
[1722210717095,0.99132678,68371.0,68370.0,0.014924]
[1722210717223,0.99288098,68371.0,68370.0,0.014924]
[1722210718024,0.99132678,68371.0,68370.0,0.014924]
[1722210718227,0.99253116,68371.0,68370.0,0.014924]
[1722210718434,1.12380501,68371.0,68370.0,0.014924]
[1722210718660,1.12260063,68371.0,68370.0,0.014924]
[1722210718870,0.738072,68371.0,68370.0,0.014924]
[1722210719017,0.75735256,68371.0,68370.0,0.014924]
[1722210719217,0.17231056,68371.0,68370.0,0.014924]
[1722210719559,0.17231056,68371.0,68370.0,0.17537524]
[1722210719721,0.28168441,68371.0,68370.0,0.17537524]
[1722210720081,0.17231056,68371.0,68370.0,0.37609914]
[1722210720277,0.25980619,68371.0,68370.0,0.14207914]
[1722210720497,0.25980619,68371.0,68370.0,0.46009914]
[1722210720673,0.26135565,68371.0,68370.0,0.14207914]
[1722210720873,0.17386476,68371.0,68370.0,0.37609914]
[1722210721078,0.25980131,68371.0,68370.0,0.69411914]
[1722210721460,0.17231056,68371.0,68370.0,0.69411914]
[1722210721645,0.17386476,68371.0,68370.0,0.69411914]
[1722210722250,0.17386476,68371.0,68370.0,0.78693475]
[1722210722938,0.17386476,68371.0,68370.0,0.37609914]
[1722210723140,0.17231056,68371.0,68370.0,0.37609914]
[1722210724295,0.15303,68371.0,68370.0,0.37609914]
[1722210724422,0.17258802,68371.0,68370.0,0.37609914]